bitfinex-derivatives/quotes_ETHF0:USTF0_20210702
["timestamp","ask_amount","ask_price","bid_price","bid_amount"]
[1625267436247,1.37835239,2151.0,2150.5,2.20527]
[1625267436448,1.37835239,2151.0,2150.8,3.0676]
[1625267436598,2.37835239,2151.0,2150.8,3.0676]
[1625267436802,2.37835239,2151.0,2150.9,2.20527]
[1625267437000,1.0,2151.0,2150.9,2.20527]
[1625267437400,2.37838864,2151.0,2150.9,2.20527]
[1625267437499,2.37838864,2151.0,2150.7,41.6717]
[1625267438053,1.37838845,2150.9,2150.7,41.6717]
[1625267438168,2.37838845,2150.9,2150.7,41.6717]
[1625267438518,1.37838907,2150.8,2150.7,41.6717]
[1625267438617,2.37838907,2150.8,2150.5,2.20527]
[1625267438819,2.20527,2150.6,2150.5,2.20527]
[1625267438967,3.20527,2150.6,2150.5,2.20527]
[1625267439118,3.20527,2150.6,2149.4,3.47359538]
[1625267439218,4.58376696,2150.6,2149.4,3.47359538]
[1625267439320,4.58376696,2150.6,2149.4,0.9399]
[1625267439568,3.20527,2150.6,2149.4,0.9399]
[1625267439669,2.20527,2150.6,2149.8,47.5752]
[1625267439869,1.0,2150.9,2149.8,47.5752]
[1625267439969,1.0,2150.9,2149.9,16.820209]
[1625267440220,1.0,2150.9,2149.8,52.3342]
[1625267440322,1.37851143,2150.8,2149.8,52.3342]
[1625267440423,1.0,2150.7,2149.8,52.3342]
[1625267440822,3.20527,2150.7,2150.6,2.20527]
[1625267440973,3.20527,2150.7,2150.6,48.17467]
[1625267441426,4.58372685,2150.7,2150.6,48.17467]
[1625267441823,3.20527,2150.7,2150.6,48.17467]
[1625267441974,1.0,2150.7,2150.6,48.17467]
[1625267442774,1.0,2150.7,2150.6,2.20527]
[1625267443527,1.0,2150.7,2150.6,5.97347]
[1625267443628,1.37841844,2150.7,2150.6,5.97347]
[1625267443980,2.20527,2150.8,2150.6,5.97347]
[1625267444633,2.20527,2150.8,2150.7,39.6139]
[1625267445684,3.20527,2151.1,2150.7,39.6139]
[1625267446181,1.37827827,2151.0,2150.7,39.6139]
[1625267446833,1.37827827,2151.0,2150.6,5.97347]
[1625267446935,1.37827827,2151.0,2150.9,2.20527]
[1625267447586,2.37827827,2151.0,2150.9,2.20527]
[1625267447788,1.37827827,2151.0,2150.9,2.20527]
[1625267451402,2.37827236,2151.3,2150.9,2.20527]
[1625267451864,1.37828062,2151.2,2150.9,2.20527]
[1625267452004,1.0,2151.1,2150.9,2.20527]
[1625267452105,2.20527,2151.4,2150.9,2.20527]
[1625267452204,1.37827399,2151.1,2150.9,2.20527]
[1625267452304,2.37827399,2151.1,2150.9,2.20527]
[1625267452605,1.3782768,2151.0,2150.9,2.20527]
[1625267454808,1.37826124,2151.3,2150.9,2.20527]
[1625267454959,1.37826124,2151.3,2151.2,2.20527]
[1625267455058,1.37826124,2151.3,2151.2,5.82457]
[1625267455163,1.37804981,2151.5,2151.2,5.82457]
[1625267455559,6.41512702,2151.9,2151.2,5.82457]
[1625267455661,1.0,2151.8,2151.6,53.7733]
[1625267455912,1.37800556,2151.7,2151.6,53.7733]
[1625267456274,7.41514057,2151.7,2151.6,53.7733]
[1625267456373,7.41514057,2151.7,2151.2,5.82457]
[1625267456674,1.37802617,2151.6,2151.2,5.82457]
[1625267456774,1.0,2151.5,2151.2,5.82457]
[1625267456928,1.0,2151.5,2151.4,2.20527]
[1625267457525,2.37802709,2151.5,2151.4,2.20527]
[1625267457625,2.37802709,2151.5,2151.2,5.82457]
[1625267457827,7.41450378,2151.5,2151.2,5.82457]
[1625267458226,7.41450378,2151.5,2151.2,3.34457]
[1625267458227,6.4147763,2151.4,2151.2,3.34457]
[1625267458379,1.0,2151.3,2151.2,3.34457]
[1625267458927,11.82551764,2151.3,2151.2,3.34457]
[1625267460030,6.78889914,2151.3,2151.2,3.34457]
[1625267460132,6.78889914,2151.3,2150.9,2.20527]
[1625267460381,1.37831105,2151.2,2150.9,2.20527]
[1625267460531,2.37831105,2151.2,2150.9,2.20527]
[1625267460784,1.37830803,2151.1,2150.9,2.20527]
[1625267460933,2.20527,2151.0,2150.9,2.20527]
[1625267461035,1.37830803,2151.1,2150.9,2.20527]
[1625267461533,1.37816337,2151.2,2150.9,2.20527]
[1625267461882,2.20527,2151.3,2150.9,2.20527]
[1625267462233,1.92192997,2151.8,2150.9,2.20527]
[1625267462336,1.0,2151.7,2150.9,2.20527]
[1625267462837,6.41446026,2151.6,2150.9,2.20527]
[1625267462936,1.0,2151.5,2151.4,2.20527]
[1625267463034,1.0,2151.5,2151.4,5.34107]
[1625267463234,2.37814305,2151.5,2151.4,5.34107]
[1625267463335,1.37814305,2151.5,2151.4,5.34107]
[1625267463587,2.37814305,2151.5,2151.4,5.34107]
[1625267464343,7.4144523,2151.5,2151.4,5.34107]
[1625267468504,2.37814305,2151.5,2151.4,5.34107]
[1625267469255,7.41102523,2151.5,2151.4,5.34107]
[1625267469657,7.41102523,2151.5,2151.4,3.1358]
[1625267469758,6.41102523,2151.5,2151.3,55.4396]
[1625267470007,1.37814305,2151.5,2151.3,55.4396]
[1625267470358,6.41089032,2151.5,2151.3,55.4396]
[1625267470757,1.37814305,2151.5,2151.3,55.4396]
[1625267471064,2.20527,2151.4,2151.3,55.4396]
[1625267471365,4.305e-05,2151.5,2151.3,55.4396]
[1625267471477,1.92203051,2151.8,2151.3,57.7673]
[1625267471568,2.74575787,2151.9,2151.3,57.7673]
[1625267471569,1.92185528,2151.9,2151.3,57.7673]
[1625267471878,1.92185528,2151.9,2151.4,16.77987]
[1625267472429,6.49101508,2152.6,2151.4,16.77987]
[1625267472430,1.92143662,2152.5,2151.4,16.77987]
[1625267472827,1.0,2152.6,2151.4,16.77987]
[1625267472978,1.92119357,2152.7,2151.4,21.77987]
[1625267473078,2.20527,2152.6,2152.5,2.20527]
[1625267473178,2.20527,2152.6,2152.5,5.22427]
[1625267473729,2.20527,2152.6,2152.5,44.32927]
[1625267474179,3.20527,2152.6,2152.5,44.32927]
[1625267474278,3.20527,2152.6,2152.5,5.22427]
[1625267474678,2.20527,2152.6,2152.5,5.22427]
[1625267475130,2.20527,2152.6,2152.5,59.99817]
[1625267479300,7e-05,2152.6,2152.5,59.99817]
[1625267480600,1.0,2153.3,2152.5,59.99817]
[1625267480701,1.9161895,2153.5,2152.5,59.99817]
[1625267481053,16.72119336,2154.2,2153.4,7.20914]
[1625267481054,2.20527,2153.7,2153.4,7.20914]
[1625267481805,2.20527,2153.7,2153.6,58.4352]
[1625267484058,2.20527,2153.7,2153.4,7.20914]
[1625267484160,3.20527,2153.7,2153.4,7.20914]
[1625267485362,2.20527,2153.7,2153.4,7.20914]
[1625267485711,3.20527,2153.7,2153.4,7.20914]
[1625267489881,2.20527,2153.9,2153.4,7.20914]
[1625267489981,3.20527,2153.9,2153.4,7.20914]
[1625267491135,3.20527,2153.9,2153.8,2.20527]
[1625267494047,3.20527,2153.9,2152.5,54.7739]
[1625267494150,6.15697,2153.9,2152.5,54.7739]
[1625267495211,1.0,2153.9,2153.0,2.20527]
[1625267495306,1.0,2153.8,2153.0,2.20527]
[1625267495860,1.0,2153.8,2153.5,48.2574]
[1625267496510,1.0,2153.8,2153.5,51.4242]
[1625267496612,1.90873951,2154.5,2153.5,51.4242]
[1625267496711,1.0,2154.4,2153.5,51.4242]
[1625267497111,2.20527,2154.2,2153.7,2.20527]
[1625267497213,1.0,2154.1,2153.7,2.20527]
[1625267499165,1.0,2154.1,2154.0,5.34107]
[1625267500416,2.20527,2154.2,2154.0,5.34107]
[1625267501221,2.20527,2154.2,2154.1,2.20527]
[1625267502375,2.20527,2154.4,2154.1,2.20527]
[1625267502476,2.20527,2154.4,2154.3,45.9745]
[1625267503177,2.20527,2154.4,2154.3,48.17977]
[1625267503483,2.20527,2154.8,2154.3,48.17977]
[1625267503685,3.20527,2154.8,2154.3,48.17977]
[1625267505195,3.20527,2154.8,2154.7,2.20527]
[1625267505899,3.20527,2154.8,2154.0,3.1358]
[1625267506047,3.20527,2154.8,2153.5,51.4242]
[1625267507248,2.20527,2154.3,2154.2,2.20527]
[1625267507346,3.20527,2154.3,2154.2,46.75237]
[1625267507548,3.20527,2154.3,2154.2,44.5471]
[1625267509858,3.20527,2154.3,2154.0,2.20527]
[1625267510314,3.20527,2154.3,2153.0,14.7303]
[1625267510414,11.88257,2154.3,2153.0,14.7303]
[1625267510665,6.88257,2154.3,2153.0,14.7303]
[1625267510930,6.88257,2154.3,2154.0,47.2873]
[1625267511265,9.08784,2154.3,2154.0,47.2873]
[1625267512069,9.08784,2154.3,2153.3,61.32257]
[1625267512269,14.08784,2154.3,2153.3,2.20527]
[1625267513073,9.08784,2154.3,2153.3,2.20527]
[1625267513275,2.20527,2153.8,2153.7,2.20527]
[1625267513385,3.20527,2153.8,2153.7,2.20527]
[1625267515227,5.41054,2153.8,2153.7,2.20527]
[1625267515831,1.0,2154.0,2153.7,2.20527]
[1625267515931,1.90320672,2155.1,2153.7,5.37337]
[1625267516281,5.0,2155.2,2153.7,5.37337]
[1625267516382,1.90291776,2155.4,2154.2,42.2495]
[1625267516481,1.90291776,2155.4,2154.2,44.8624]
[1625267516733,6.66156578,2155.5,2154.2,44.8624]
[1625267516940,1.0,2155.4,2154.2,44.8624]
[1625267517039,9.27936355,2155.4,2154.2,44.8624]
[1625267517292,4.41054,2154.3,2154.2,47.06767]
[1625267517492,5.41054,2154.3,2154.2,47.06767]
[1625267521410,4.41054,2154.3,2154.2,47.06767]
[1625267521509,5.41054,2154.3,2154.2,4.81817]
[1625267521660,5.41054,2154.3,2154.2,2.20527]
[1625267521760,5.41054,2154.3,2153.7,2.20527]
[1625267522915,5.41054,2154.3,2154.2,40.5751]
[1625267523014,5.41054,2154.3,2154.2,42.8597]
[1625267523264,5.41054,2154.3,2154.2,45.06497]
[1625267524081,4.41054,2154.3,2154.2,45.06497]
[1625267525955,4.41054,2154.3,2154.2,4.48987]
[1625267526647,4.41054,2154.3,2154.2,51.07607]
[1625267527555,4.41054,2154.3,2154.2,4.48987]
[1625267528253,4.41054,2154.3,2154.2,59.79177]
[1625267529810,5.41054,2154.3,2154.2,59.79177]
[1625267530161,5.41054,2154.3,2154.2,2.20527]
[1625267530813,5.41054,2154.3,2153.7,2.20527]
[1625267530912,5.41054,2154.3,2153.0,14.7303]
[1625267531363,2.20527,2154.0,2153.6,2.20527]
[1625267531461,1.0,2153.9,2153.6,2.20527]
[1625267533163,2.20527,2154.0,2153.6,2.20527]
[1625267533264,2.20527,2154.0,2153.6,5.18507]
[1625267533416,2.20527,2153.7,2153.6,5.18507]
[1625267535019,1.0,2154.9,2153.6,5.18507]
[1625267535372,1.0,2154.9,2154.8,2.20527]
[1625267535521,1.0,2154.9,2154.8,5.17807]
[1625267535871,1.0,2154.9,2154.8,2.9728]
[1625267537374,3.20527,2154.9,2154.8,2.9728]
[1625267537728,1.0,2154.9,2154.8,2.9728]
[1625267537829,1.0,2155.6,2154.8,2.9728]
[1625267538478,1.0,2156.3,2155.5,47.0921]
[1625267538681,14.7037,2156.9,2155.5,50.5822]
[1625267538887,1.0,2156.8,2155.5,50.5822]
[1625267539338,1.0,2156.8,2155.6,16.968175]
[1625267539444,3.20527,2156.8,2156.7,2.20527]
[1625267539548,3.20527,2156.8,2156.7,5.38397]
[1625267539803,1.90114341,2157.8,2156.7,5.38397]
[1625267540001,1.0,2157.7,2156.7,5.38397]
[1625267540405,1.0,2157.7,2157.5,55.3516]
[1625267540555,1.0,2157.7,2156.7,2.20527]
[1625267540652,1.0,2157.7,2156.4,2.20527]
[1625267540754,3.8088,2157.7,2154.8,14.4938]
[1625267540962,5.0,2157.6,2154.8,14.4938]
[1625267541064,1.0,2157.5,2154.8,14.4938]
[1625267541159,2.37536486,2157.5,2156.0,42.5759]
[1625267541361,2.20527,2156.7,2156.2,2.20527]
[1625267541464,6.72267,2156.7,2156.2,2.20527]
[1625267541760,6.72267,2156.7,2154.8,14.4938]
[1625267542163,11.72267,2156.7,2154.8,14.4938]
[1625267542364,11.72267,2156.7,2154.9,16.939187]
[1625267542819,11.72267,2156.7,2154.8,14.4938]
[1625267543418,2.20527,2155.7,2155.6,2.20527]
[1625267543518,6.51967,2155.7,2155.6,2.20527]
[1625267543917,6.51967,2155.7,2154.8,14.4938]
[1625267545429,6.51967,2155.7,2155.0,2.20527]
[1625267545625,5.51967,2155.7,2155.0,2.20527]
[1625267546778,1.0,2155.6,2155.0,2.20527]
[1625267547479,2.20527,2155.4,2155.3,2.20527]
[1625267548734,3.20527,2155.7,2155.3,2.20527]
[1625267549137,3.20527,2155.7,2155.0,2.20527]
[1625267549237,6.08117,2155.7,2155.0,2.20527]
[1625267549486,5.81997,2155.1,2155.0,2.20527]
[1625267553008,1.0,2155.7,2155.0,2.20527]
[1625267553112,30.052,2156.6,2155.0,2.20527]
[1625267553211,1.0,2156.5,2155.0,2.20527]
[1625267553460,2.20527,2155.9,2155.5,2.20527]
[1625267553562,1.0,2155.8,2155.5,2.20527]
[1625267553660,2.20527,2155.9,2155.5,2.20527]
[1625267555470,2.20527,2155.9,2155.8,2.20527]
[1625267556526,3.20527,2155.9,2155.8,2.20527]
[1625267556874,6.03827,2155.9,2155.5,2.20527]
[1625267556976,6.03827,2155.9,2155.5,3.13367]
[1625267557076,6.03827,2155.9,2155.5,2.20527]
[1625267558429,3.20527,2155.9,2155.5,2.20527]
[1625267558580,2.20527,2155.9,2155.5,2.20527]
[1625267558679,3.20527,2155.9,2155.5,2.20527]
[1625267559629,3.20527,2155.9,2155.8,2.20527]
[1625267561634,3.20527,2155.9,2155.2,53.472]
[1625267562941,3.20527,2155.9,2154.3,14.251]
[1625267563089,2.20527,2155.9,2154.3,19.251]
[1625267563490,3.20527,2155.9,2154.3,19.251]
[1625267563591,3.20527,2155.9,2155.6,2.20527]
[1625267563741,3.20527,2155.9,2155.6,46.01257]
[1625267564041,3.20527,2155.9,2155.6,43.8073]
[1625267564603,2.20527,2155.9,2155.6,43.8073]
[1625267564755,2.20527,2155.9,2155.6,47.2217]
[1625267565607,2.20527,2155.9,2155.8,1.20527]
[1625267566155,5.52587,2155.9,2155.4,2.20527]
[1625267567259,5.52587,2155.9,2154.7,1.0]
[1625267567358,5.52587,2155.9,2154.4,1.0]
[1625267567609,2.20527,2155.4,2155.1,2.20527]
[1625267569613,2.20527,2155.3,2155.1,2.20527]
[1625267573626,2.20527,2155.3,2155.2,2.20527]
[1625267573729,2.20527,2155.3,2155.2,5.62417]
[1625267574481,2.20527,2155.3,2155.2,6.55777]
[1625267574732,2.20527,2155.3,2155.2,49.89677]
[1625267574930,2.20527,2155.3,2155.2,46.7579]
[1625267575635,2.20527,2155.3,2155.2,48.96317]
[1625267576086,2.20527,2155.3,2155.2,46.7579]
[1625267576386,2.20527,2155.3,2155.1,2.20527]
[1625267577091,2.20527,2155.3,2155.1,3.14007]
[1625267577236,2.20527,2155.3,2155.1,2.20527]
[1625267578743,5.79877,2155.3,2154.7,2.20527]
[1625267578839,6.71787,2155.3,2154.7,2.20527]
[1625267579093,6.71787,2155.3,2154.3,14.251]
[1625267579592,10.79877,2155.3,2154.3,14.251]
[1625267579692,4.41054,2154.4,2154.2,2.20527]
[1625267579792,8.21724,2154.4,2154.2,2.20527]
[1625267581541,8.21724,2154.4,2154.2,3.14757]
[1625267581642,8.21724,2154.4,2154.2,2.20527]
[1625267588223,8.21724,2154.4,2153.7,2.20527]
[1625267589525,8.21724,2154.4,2153.3,1.0]
[1625267589625,13.21724,2154.4,2152.9,1.0]
[1625267589729,4.41054,2153.0,2152.9,3.20527]
[1625267589878,4.41054,2153.0,2152.9,2.20527]
[1625267593586,5.0,2154.4,2152.9,2.20527]
[1625267593687,2.20527,2153.6,2153.5,2.20527]
[1625267593787,2.20527,2153.6,2153.5,5.74487]
[1625267594239,2.20527,2153.6,2153.5,3.5396]
[1625267595239,2.20527,2153.6,2152.9,4.89397]
[1625267595741,2.20527,2153.0,2152.9,7.09924]
[1625267606429,2.90913315,2154.5,2152.9,7.09924]
[1625267606536,1.90913315,2154.5,2153.0,1.0]
[1625267606897,15.2796,2154.7,2153.0,1.0]
[1625267606991,15.2796,2154.7,2153.1,16.870961]
[1625267607090,15.2796,2154.7,2153.2,1.0]
[1625267607393,5.0,2154.6,2153.0,16.718292]
[1625267607492,15.2796,2154.7,2153.0,17.718292]
[1625267607591,15.2796,2154.7,2153.0,1.0]
[1625267607792,2.20527,2153.6,2153.5,2.20527]
[1625267607894,2.20527,2153.6,2153.5,5.47177]
[1625267609847,4.41054,2153.6,2153.5,5.47177]
[1625267631939,2.20527,2153.6,2153.2,2.20527]
[1625267632040,5.24437,2153.6,2153.2,2.20527]
[1625267633993,2.20527,2153.3,2153.2,2.20527]
[1625267637358,2.20527,2153.6,2153.2,2.20527]
[1625267637462,2.20527,2153.6,2153.2,5.15667]
[1625267637559,1.0,2154.7,2153.2,5.15667]
[1625267637658,14.7452,2154.8,2153.3,1.0]
[1625267637958,1.90907439,2155.3,2153.3,1.0]
[1625267638059,2.20527,2155.2,2155.0,2.20527]
[1625267638168,2.20527,2155.2,2155.0,5.92827]
[1625267638510,2.20527,2155.2,2155.0,53.92987]
[1625267638610,2.20527,2155.2,2155.0,3.723]
[1625267639662,2.20527,2155.2,2154.6,50.9564]
[1625267639812,2.20527,2155.2,2153.5,1.0]
[1625267640013,2.20527,2154.6,2154.4,2.20527]
[1625267647856,2.20527,2154.6,2154.2,2.20527]
[1625267648154,2.20527,2154.3,2154.2,2.20527]
[1625267648559,2.20527,2154.6,2154.2,2.20527]
[1625267648810,2.20527,2154.6,2154.2,4.95007]
[1625267649461,6.12369962,2155.6,2154.2,4.95007]
[1625267649562,6.12369962,2155.6,2154.3,1.0]
[1625267649810,4.759,2155.6,2154.3,1.0]
[1625267649959,1.36467138,2155.8,2154.3,1.0]
[1625267650059,2.20527,2155.5,2155.4,2.20527]
[1625267650160,2.20527,2155.5,2155.4,4.72197]
[1625267650511,1.36450941,2156.0,2155.4,4.72197]
[1625267650665,1.36480991,2156.1,2155.4,4.72197]
[1625267650965,1.37565663,2156.0,2155.4,4.72197]
[1625267651763,1.37565663,2156.0,2155.4,60.92667]
[1625267652062,2.20527,2155.9,2155.8,2.20527]
[1625267652363,2.20527,2155.9,2155.4,4.72197]
[1625267652464,2.20527,2155.9,2155.4,2.20527]
[1625267653617,1.37565838,2155.8,2155.4,2.20527]
[1625267654117,2.20527,2155.5,2155.4,2.20527]
[1625267654318,2.20527,2155.5,2155.2,2.20527]
[1625267654421,2.20527,2155.5,2154.8,1.0]
[1625267654520,2.20527,2155.5,2154.3,14.6445]
[1625267654622,2.20527,2155.5,2154.4,1.0]
[1625267654718,1.3759039,2155.4,2154.4,1.0]
[1625267654819,1.3759039,2155.4,2154.3,14.6445]
[1625267655470,1.3759039,2155.4,2153.4,59.9669]
[1625267655672,1.3759039,2155.4,2153.5,1.0]
[1625267656123,2.20527,2154.4,2154.3,2.20527]
[1625267663102,2.20527,2154.8,2154.3,2.20527]
[1625267663203,2.20527,2154.8,2154.3,5.06317]
[1625267664153,2.20527,2154.4,2154.3,5.06317]
[1625267665860,2.20527,2154.8,2154.3,5.06317]
[1625267666108,2.20527,2154.8,2154.6,56.3082]
[1625267666208,2.20527,2154.8,2154.7,2.20527]
[1625267667109,2.83567655,2155.7,2154.7,2.20527]
[1625267667110,1.36709298,2155.7,2154.7,2.20527]
[1625267667259,1.36709298,2155.7,2154.7,3.20527]
[1625267667511,1.37570232,2155.6,2154.7,3.20527]
[1625267667661,1.37570232,2155.6,2154.7,2.20527]
[1625267668011,2.74262239,2155.6,2154.7,2.20527]
[1625267668164,2.20527,2154.8,2154.7,2.20527]
[1625267669265,3.7621,2155.0,2154.7,2.20527]
[1625267669366,1.36712654,2155.5,2154.7,2.20527]
[1625267669768,1.36712654,2155.5,2154.7,5.60987]
[1625267669769,1.37576596,2155.4,2154.7,5.60987]
[1625267670166,3.57221054,2155.6,2155.5,2.20527]
[1625267670270,2.20527,2155.6,2155.5,2.20527]
[1625267670467,3.58096908,2155.6,2155.5,2.20527]
[1625267671171,6.13226908,2155.6,2154.8,1.0]
[1625267671268,6.13226908,2155.6,2154.5,56.3596]
[1625267671419,7.4991331,2155.6,2154.5,57.3596]
[1625267671619,1.37583851,2155.5,2154.5,57.3596]
[1625267671822,2.74267513,2155.5,2154.5,57.3596]
[1625267672168,2.20527,2155.1,2154.9,2.20527]
[1625267684770,2.20527,2155.1,2154.7,2.20527]
[1625267685471,41.5194,2154.8,2154.7,2.20527]
[1625267685570,2.7406,2154.8,2154.7,2.20527]
[1625267686273,4.94587,2154.8,2154.7,2.20527]
[1625267690647,2.20527,2154.8,2154.7,2.20527]
[1625267691453,2.20527,2155.1,2154.7,2.20527]
[1625267691954,2.20527,2155.1,2155.0,52.0531]
[1625267692156,1.36556857,2156.0,2155.0,52.0531]
[1625267692258,1.36556857,2156.0,2155.0,53.0531]
[1625267692358,2.20527,2155.6,2155.2,2.20527]
[1625267693311,1.36554877,2156.1,2155.2,2.20527]
[1625267693510,1.36557926,2156.2,2155.2,2.20527]
[1625267693611,1.36557926,2156.2,2155.2,3.20527]
[1625267693963,1.37540815,2156.1,2155.2,3.20527]
[1625267694062,1.37540815,2156.1,2155.2,2.20527]
[1625267694362,2.20527,2155.5,2155.2,2.20527]
[1625267695369,1.36557926,2156.2,2155.2,2.20527]
[1625267695469,1.36557926,2156.2,2155.2,3.20527]
[1625267695873,1.37536053,2156.1,2155.2,3.20527]
[1625267695974,1.37536053,2156.1,2155.2,2.20527]
[1625267696374,2.20527,2155.8,2155.5,2.20527]
[1625267698376,2.20527,2155.7,2155.5,2.20527]
[1625267699177,5.49037,2155.7,2154.9,1.0]
[1625267699278,5.49037,2155.7,2154.3,14.1212]
[1625267699533,10.49037,2155.7,2154.3,14.1212]
[1625267699632,5.49037,2155.7,2154.3,14.1212]
[1625267700032,49.35817,2155.7,2154.3,14.1212]
[1625267700231,49.35817,2155.7,2154.4,1.0]
[1625267700330,6.85631996,2155.7,2154.4,1.0]
[1625267700441,5.74837,2154.8,2154.7,2.20527]
[1625267701298,2.20527,2154.8,2154.7,2.20527]
[1625267702400,4.41054,2154.8,2154.7,2.20527]
[1625267706263,4.41054,2154.8,2154.7,49.34447]
[1625267706965,1.36606803,2155.7,2154.7,49.34447]
[1625267707366,1.36634318,2155.8,2154.7,49.34447]
[1625267707618,1.36628238,2155.9,2154.7,49.34447]
[1625267707716,1.36628238,2155.9,2154.7,2.20527]
[1625267707919,6.12528238,2155.9,2154.7,2.20527]
[1625267708020,1.37573643,2155.8,2154.7,2.20527]
[1625267708119,8.90063643,2155.8,2154.7,2.20527]
[1625267708419,4.41054,2154.8,2154.7,2.20527]
[1625267714329,4.41054,2154.8,2154.4,2.20527]
[1625267714535,2.20527,2154.5,2154.4,2.20527]
[1625267714734,2.20527,2154.5,2154.1,2.20527]
[1625267714984,4.89597,2154.5,2154.1,2.20527]
[1625267716499,2.20527,2154.2,2154.1,2.20527]
[1625267718004,2.20527,2154.5,2154.1,2.20527]
[1625267718506,2.20527,2154.2,2154.1,2.20527]
[1625267719555,4.72927,2154.2,2154.1,2.20527]
[1625267721711,2.20527,2154.2,2154.1,2.20527]
[1625267724318,1.36959755,2155.2,2154.1,2.20527]
[1625267724567,2.20527,2154.9,2154.5,2.20527]
[1625267724668,5.00007,2154.9,2154.5,2.20527]
[1625267725921,5.00007,2154.9,2154.1,2.20527]
[1625267726523,2.20527,2154.3,2154.1,2.20527]
[1625267727774,6.37138761,2154.9,2154.1,2.20527]
[1625267728276,1.37588251,2154.8,2154.1,2.20527]
[1625267728374,2.74730809,2154.8,2154.0,2.20527]
[1625267728573,4.41054,2154.1,2154.0,2.20527]
[1625267728673,6.75574,2154.1,2154.0,2.20527]
[1625267731828,4.41054,2154.1,2154.0,2.20527]
[1625267732428,1.37153088,2154.6,2154.0,2.20527]
[1625267732578,2.20527,2154.3,2154.0,2.20527]
[1625267732678,5.05087,2154.3,2154.0,2.20527]
[1625267734650,2.20527,2154.1,2154.0,2.20527]
[1625267736054,2.20527,2154.3,2154.0,2.20527]
[1625267737503,1.37152727,2154.8,2154.0,5.44387]
[1625267737956,1.37152727,2154.8,2154.7,51.7367]
[1625267738103,1.37152727,2154.8,2154.7,54.4163]
[1625267738359,1.37152727,2154.8,2154.7,2.6796]
[1625267738453,1.37138726,2155.0,2154.7,2.6796]
[1625267738604,1.37138726,2155.0,2154.9,2.20527]
[1625267738705,3.57665726,2155.0,2154.9,2.20527]
[1625267739155,3.58104554,2155.0,2154.9,2.20527]
[1625267739656,4.95248043,2155.0,2154.9,2.20527]
[1625267740007,3.58104554,2155.0,2154.9,2.20527]
[1625267740656,5.78631554,2155.0,2154.9,2.20527]
[1625267740906,5.78631554,2155.0,2154.7,2.20527]
[1625267741115,8.39751554,2155.0,2154.1,1.0]
[1625267741211,8.39751554,2155.0,2153.5,45.1428]
[1625267741311,7.02174,2155.0,2153.6,4.759]
[1625267741612,2.74743914,2154.9,2153.6,4.759]
[1625267741962,1.37163926,2154.7,2153.5,1.0]
[1625267742061,1.37163926,2154.7,2153.3,14.5184]
[1625267742412,1.37606282,2154.6,2153.3,14.5184]
[1625267742613,2.20527,2154.1,2153.8,2.20527]
[1625267744567,2.20527,2154.3,2153.8,2.20527]
[1625267744668,2.20527,2154.3,2154.2,2.20527]
[1625267746374,2.20527,2154.3,2153.8,2.20527]
[1625267746674,4.41054,2154.3,2154.2,2.20527]
[1625267747029,4.41054,2154.3,2153.8,2.20527]
[1625267748681,2.20527,2154.3,2154.1,2.20527]
[1625267750137,2.20527,2154.3,2153.8,2.20527]
[1625267750740,4.41054,2154.3,2153.8,2.20527]
[1625267751342,2.20527,2154.3,2153.8,2.20527]
[1625267752393,1.371646,2154.7,2153.8,4.82217]
[1625267752746,1.371646,2154.7,2154.6,4.41054]
[1625267752895,2.20527,2154.8,2154.6,7.90304]
[1625267755756,2.20527,2154.8,2154.7,57.0981]
[1625267756413,2.20527,2154.8,2154.6,7.90304]
[1625267760478,1.3758585,2154.7,2154.6,4.41054]
[1625267760776,1.3758585,2154.7,2154.6,2.20527]
[1625267761528,1.3758585,2154.7,2154.2,2.20527]
[1625267761626,1.3758585,2154.7,2153.5,1.0]
[1625267761726,1.3758585,2154.7,2153.3,15.77005689]
[1625267761930,1.37169439,2154.6,2153.3,14.5184]
[1625267762029,6.37169439,2154.6,2153.3,14.5184]
[1625267762280,1.37610394,2154.5,2153.3,14.5184]
[1625267762681,6.17425346,2154.5,2153.3,14.5184]
[1625267762783,2.20527,2153.7,2153.6,2.20527]
[1625267762933,5.53847,2153.7,2153.6,2.20527]
[1625267764792,7.74374,2153.7,2153.6,2.20527]
[1625267772635,5.53847,2153.7,2153.6,2.20527]
[1625267772736,2.20527,2153.7,2153.6,2.20527]
[1625267773234,2.20527,2154.1,2153.6,2.20527]
[1625267776744,1.37102153,2154.8,2153.6,2.20527]
[1625267776944,2.20527,2154.5,2154.3,2.20527]
[1625267777998,4.76737,2154.5,2154.3,2.20527]
[1625267778146,4.76737,2154.5,2154.4,47.2291]
[1625267778349,4.76737,2154.5,2154.3,2.20527]
[1625267778900,2.20527,2154.4,2154.3,2.20527]
[1625267780760,2.20527,2154.4,2154.1,2.20527]
[1625267780958,2.20527,2154.2,2154.1,2.20527]
[1625267781366,2.20527,2154.2,2154.1,55.27137]
[1625267781967,2.20527,2154.2,2154.1,2.20527]
[1625267785632,2.20527,2154.2,2153.7,2.20527]
[1625267786987,2.20527,2153.8,2153.7,2.20527]
[1625267787086,5.00567,2153.8,2153.7,2.20527]
[1625267797568,2.20527,2154.2,2153.7,2.20527]
[1625267797675,2.20527,2154.2,2153.7,5.59837]
[1625267798522,2.20527,2154.2,2154.1,48.7562]
[1625267799123,2.20527,2154.2,2154.1,50.96147]
[1625267801127,2.20527,2154.2,2154.1,2.20527]
[1625267806088,5.31687,2154.2,2154.1,2.20527]
[1625267807290,6.69298484,2154.2,2154.1,2.20527]